bitfinex-derivatives/quotes_BTCF0:USTF0_20251009
["timestamp","ask_amount","ask_price","bid_price","bid_amount"]
[1759989424806,0.03489459,122180.0,122170.0,3.49453547]
[1759989425605,0.03489459,122180.0,122170.0,2.75513547]
[1759989425800,0.03489459,122180.0,122170.0,3.49449547]
[1759989426199,0.03489459,122180.0,122170.0,2.75513547]
[1759989426404,0.03489459,122180.0,122170.0,3.49449547]
[1759989426598,0.03489459,122180.0,122170.0,2.75513547]
[1759989426910,0.014,122180.0,122170.0,3.49449547]
[1759989427301,0.014,122180.0,122170.0,2.75513547]
[1759989427502,0.014,122180.0,122170.0,3.49449547]
[1759989428806,0.014,122180.0,122170.0,3.15513547]
[1759989429008,0.014,122180.0,122170.0,3.89449547]
[1759989429608,0.014,122180.0,122170.0,3.89445547]
[1759989430505,0.0950219,122210.0,122180.0,0.0818276]
[1759989430707,0.13801102,122210.0,122200.0,0.0818166]
[1759989431509,0.13801102,122210.0,122200.0,0.4426166]
[1759989431701,0.14301102,122210.0,122200.0,0.4426166]
[1759989431904,0.14701102,122210.0,122200.0,0.4426166]
[1759989432204,0.14701102,122210.0,122200.0,0.42398674]
[1759989433406,0.14702117,122210.0,122200.0,0.42398674]
[1759989434913,0.43383191,122210.0,122200.0,0.42398674]
[1759989436513,0.1260919,122210.0,122200.0,0.42398674]
[1759989436714,0.1470225,122210.0,122200.0,0.42398674]
[1759989437212,0.1470225,122210.0,122200.0,3.20734674]
[1759989438112,0.43383324,122210.0,122200.0,3.20734674]
[1759989439015,0.1470225,122210.0,122200.0,3.20734674]
[1759989439215,0.43383324,122210.0,122200.0,3.20734674]
[1759989440020,0.1470225,122210.0,122200.0,3.20734674]
[1759989440313,0.1470225,122210.0,122200.0,3.18871692]
[1759989444615,0.1470225,122210.0,122200.0,2.44943692]
[1759989444916,0.1470225,122210.0,122200.0,3.18867692]
[1759989447913,0.1470225,122210.0,122200.0,2.44943692]
[1759989448109,0.1470225,122210.0,122200.0,3.18867692]
[1759989449422,0.1470225,122210.0,122200.0,3.47548766]
[1759989449625,0.1249525,122210.0,122200.0,2.77350734]
[1759989449818,0.1249525,122210.0,122200.0,3.51270734]
[1759989450821,0.1249525,122210.0,122200.0,2.77350734]
[1759989451019,0.1249525,122210.0,122200.0,3.51270734]
[1759989452925,0.1249525,122210.0,122200.0,2.77350734]
[1759989453224,0.1249525,122210.0,122200.0,3.51270734]
[1759989455726,0.1117425,122210.0,122200.0,3.51270734]
[1759989456126,0.1117425,122210.0,122200.0,3.2258966]
[1759989456325,0.1117425,122210.0,122200.0,3.51270734]
[1759989457825,0.1117425,122210.0,122200.0,3.655704]
[1759989460331,0.1117425,122210.0,122200.0,4.016504]
[1759989463730,0.1117425,122210.0,122200.0,1.233224]
[1759989463927,0.1117425,122210.0,122200.0,4.016304]
[1759989465437,0.1117425,122210.0,122200.0,3.5864966]
[1759989465639,0.1117425,122210.0,122200.0,4.016304]
[1759989465936,0.1117425,122210.0,122200.0,1.233224]
[1759989466131,0.1117425,122210.0,122200.0,4.016264]
[1759989467139,0.1117425,122210.0,122200.0,1.233224]
[1759989467340,0.1117425,122210.0,122200.0,4.016264]
[1759989469336,0.1117425,122210.0,122200.0,3.294664]
[1759989469537,0.1117425,122210.0,122200.0,4.016264]
[1759989471440,0.1117425,122210.0,122200.0,3.294664]
[1759989471743,0.1117425,122210.0,122200.0,4.016264]
[1759989475939,0.1117425,122210.0,122200.0,3.277144]
[1759989476146,0.1117425,122210.0,122200.0,4.016224]
[1759989476843,0.1253125,122210.0,122200.0,3.5864166]
[1759989477045,0.1253125,122210.0,122200.0,4.016224]
[1759989478949,0.1253125,122210.0,122200.0,1.233224]
[1759989479144,0.1253125,122210.0,122200.0,3.277064]
[1759989479345,0.1253125,122210.0,122200.0,4.016144]
[1759989479547,0.1117405,122210.0,122200.0,4.016144]
[1759989480049,0.1117405,122210.0,122200.0,3.5863366]
[1759989480250,0.1117405,122210.0,122200.0,4.016144]
[1759989486953,0.1117405,122210.0,122200.0,1.233224]
[1759989487154,0.1117405,122210.0,122200.0,4.016064]
[1759989505966,0.1117405,122210.0,122200.0,3.294464]
[1759989506166,0.1117405,122210.0,122200.0,4.016064]
[1759989506966,0.1117405,122210.0,122200.0,3.294464]
[1759989507269,0.1117405,122210.0,122200.0,4.016064]
[1759989509068,0.1117405,122210.0,122200.0,4.015984]
[1759989510261,0.1117405,122210.0,122200.0,1.233224]
[1759989510467,0.3398642,122210.0,122200.0,3.5861366]
[1759989510769,0.1249605,122210.0,122200.0,4.015944]
[1759989512966,0.1249605,122210.0,122200.0,4.015904]
[1759989518676,0.1249605,122210.0,122200.0,3.5860966]
[1759989518876,0.1249605,122210.0,122200.0,4.015904]
[1759989519879,0.1249605,122210.0,122200.0,3.8726423]
[1759989523883,0.1117405,122210.0,122200.0,3.8726423]
[1759989524278,0.1117405,122210.0,122200.0,3.8726023]
[1759989526585,0.1246805,122210.0,122200.0,3.8726023]
[1759989527683,0.0299306,122210.0,122200.0,3.420268]
[1759989527882,0.0299306,122210.0,122200.0,4.159148]
[1759989528088,0.0299306,122210.0,122200.0,3.420268]
[1759989528089,0.009,122210.0,122200.0,3.420268]
[1759989528284,0.009,122210.0,122200.0,4.559148]
[1759989528792,0.009,122210.0,122200.0,3.820268]
[1759989528990,0.009,122210.0,122200.0,4.559148]
[1759989531883,0.009,122210.0,122200.0,4.559108]
[1759989534092,0.009,122210.0,122200.0,4.659108]
[1759989534395,0.0954412,122230.0,122220.0,0.0818033]
[1759989534693,0.11627594,122230.0,122220.0,1.828749]
[1759989535095,0.03447474,122230.0,122220.0,1.828749]
[1759989535598,0.02083474,122230.0,122220.0,1.828749]
[1759989536497,0.02883474,122230.0,122220.0,1.089949]
[1759989536797,0.008,122230.0,122220.0,1.828749]
[1759989536990,0.001,122230.0,122220.0,1.829749]
[1759989537194,0.0954346,122240.0,122230.0,0.0817966]
[1759989537496,0.11625969,122240.0,122230.0,0.7291423]
[1759989537692,0.0954346,122240.0,122230.0,0.7291423]
[1759989537893,0.1177399,122250.0,122240.0,0.0817899]
[1759989538089,0.13856436,122250.0,122240.0,0.7291356]
[1759989538295,0.13856436,122250.0,122240.0,1.4678956]
[1759989538496,0.13856436,122250.0,122240.0,0.3608]
[1759989538798,0.13856436,122250.0,122240.0,3.2249099]
[1759989540198,0.13856436,122250.0,122240.0,3.2259099]
[1759989540399,0.13956436,122250.0,122240.0,3.2259099]
[1759989543800,0.13956436,122250.0,122240.0,2.4871499]
[1759989543997,0.82611006,122250.0,122240.0,0.3618]
[1759989544202,0.82611006,122250.0,122240.0,2.04444]
[1759989544405,0.82611006,122250.0,122240.0,2.78316]
[1759989544596,0.82611006,122250.0,122240.0,2.76453582]
[1759989546799,0.82611006,122250.0,122240.0,2.02581582]
[1759989547098,0.82611006,122250.0,122240.0,2.76449582]
[1759989548700,0.82611006,122250.0,122240.0,3.12529582]
[1759989548905,0.82611006,122250.0,122240.0,2.76449582]
[1759989550207,0.1167699,122240.0,122230.0,0.3608]
[1759989550507,0.42414006,122240.0,122230.0,3.14284]
[1759989552309,0.42414006,122240.0,122230.0,3.2266366]
[1759989558410,0.13759436,122240.0,122230.0,3.2266366]
[1759989558612,0.42414006,122240.0,122230.0,3.2266366]
[1759989559817,0.13759436,122240.0,122230.0,2.4879566]
[1759989560116,0.42414006,122240.0,122230.0,0.3628]
[1759989560307,0.42414006,122240.0,122230.0,3.14476]
[1759989560507,0.42414006,122240.0,122230.0,2.40612]
[1759989560709,0.42414006,122240.0,122230.0,3.14476]
[1759989561018,0.42414006,122240.0,122230.0,2.38749534]
[1759989561220,0.42414006,122240.0,122230.0,3.12613534]
[1759989562117,0.42414006,122240.0,122230.0,0.34417534]
[1759989562316,0.42414006,122240.0,122230.0,3.12609534]
[1759989570227,0.42414006,122240.0,122230.0,0.34417534]
[1759989570427,0.42414006,122240.0,122230.0,3.12605534]
[1759989570825,1.11068576,122240.0,122230.0,2.04528]
[1759989571024,0.1167766,122230.0,122220.0,2.40408]
[1759989571224,0.42414676,122230.0,122220.0,3.14268]
[1759989571729,0.42414676,122230.0,122220.0,0.3608]
[1759989572026,0.42414676,122230.0,122220.0,3.14268]
[1759989572228,0.42414676,122230.0,122220.0,3.14468]
[1759989572429,0.42414676,122230.0,122220.0,3.14868]
[1759989573830,0.13760106,122230.0,122220.0,3.14868]
[1759989574126,0.42414676,122230.0,122220.0,3.14868]
[1759989576829,0.42414676,122230.0,122220.0,0.3668]
[1759989577129,0.42414676,122230.0,122220.0,3.14876]
[1759989578231,0.53760106,122230.0,122220.0,0.3668]
[1759989578430,0.53760106,122230.0,122220.0,3.1488]
[1759989578732,0.82414676,122230.0,122220.0,3.1488]
[1759989580633,0.82414676,122230.0,122220.0,2.4102]
[1759989580835,0.82414676,122230.0,122220.0,3.1488]
[1759989581831,0.75251274,122230.0,122220.0,3.1488]
[1759989582432,0.35251274,122230.0,122220.0,3.1488]
[1759989582832,0.35251274,122230.0,122220.0,3.14884]
[1759989592748,0.35251274,122230.0,122220.0,3.14888]
[1759989595741,0.35251274,122230.0,122220.0,2.41028]
[1759989595946,0.35251274,122230.0,122220.0,3.14888]
[1759989596550,0.35251274,122230.0,122220.0,2.41028]
[1759989597046,0.35251274,122230.0,122220.0,3.14888]
[1759989597246,0.35251274,122230.0,122220.0,2.41028]
[1759989597453,0.35251274,122230.0,122220.0,3.14888]
[1759989600653,0.35251274,122230.0,122220.0,2.41028]
[1759989600850,0.35251274,122230.0,122220.0,3.14888]
[1759989601454,0.13760106,122230.0,122220.0,3.14888]
[1759989601656,0.35251274,122230.0,122220.0,3.14888]
[1759989603455,0.13760106,122230.0,122220.0,2.70699498]
[1759989603649,0.13760106,122230.0,122220.0,3.44559498]
[1759989603650,0.35251274,122230.0,122220.0,3.44559498]
[1759989603955,0.35251274,122230.0,122220.0,3.80639498]
[1759989604754,0.13760106,122230.0,122220.0,4.02130666]
[1759989604954,0.13760106,122230.0,122220.0,3.80639498]
[1759989605457,0.35251274,122230.0,122220.0,3.80639498]
[1759989606456,0.35251274,122230.0,122220.0,3.06779498]
[1759989606654,0.35251274,122230.0,122220.0,3.80643498]
[1759989607356,0.13760106,122230.0,122220.0,3.80643498]
[1759989607656,0.35251274,122230.0,122220.0,3.80643498]
[1759989608159,0.35251274,122230.0,122220.0,3.06783498]
[1759989608455,0.35251274,122230.0,122220.0,1.02431498]
[1759989608657,0.35251274,122230.0,122220.0,3.80643498]
[1759989609257,0.35254924,122230.0,122220.0,3.80643498]
[1759989609453,0.35254924,122230.0,122220.0,0.8094033]
[1759989609856,0.35254924,122230.0,122220.0,3.14892]
[1759989611258,0.35254924,122230.0,122220.0,0.3668]
[1759989611453,0.56746092,122230.0,122220.0,2.41028]
[1759989611758,0.56746092,122230.0,122220.0,3.14888]
[1759989612459,0.56746092,122230.0,122220.0,0.3628]
[1759989612659,0.56746092,122230.0,122220.0,3.12625338]
[1759989613156,0.35254924,122230.0,122220.0,2.38765338]
[1759989613360,0.35254924,122230.0,122220.0,3.12625338]
[1759989613561,0.35254924,122230.0,122220.0,3.12825338]
[1759989614261,0.35254924,122230.0,122220.0,3.13025338]
[1759989614961,0.35254924,122230.0,122220.0,0.34817338]
[1759989615262,0.56746092,122230.0,122220.0,3.13021338]
[1759989616155,0.35254924,122230.0,122220.0,2.39165338]
[1759989616460,0.35254924,122230.0,122220.0,3.13021338]
[1759989622767,0.56746092,122230.0,122220.0,3.13021338]
[1759989623066,0.56746092,122230.0,122220.0,3.14684]
[1759989623270,0.92826092,122230.0,122220.0,2.78604]
[1759989628463,0.56746092,122230.0,122220.0,2.78604]
[1759989629366,0.56746092,122230.0,122220.0,3.14684]
[1759989631364,0.56746092,122230.0,122220.0,2.78604]
[1759989631566,0.56746092,122230.0,122220.0,3.14684]
[1759989631767,0.56746092,122230.0,122220.0,3.14688]
[1759989632162,0.56746092,122230.0,122220.0,2.78608]
[1759989632668,0.56746092,122230.0,122220.0,0.004]
[1759989632968,0.56746092,122230.0,122220.0,3.14688]
[1759989633170,0.56746092,122230.0,122220.0,2.78608]
[1759989636966,0.13763756,122230.0,122220.0,2.78608]
[1759989637170,0.56746092,122230.0,122220.0,2.78608]
[1759989639171,0.56746092,122230.0,122220.0,2.40832]
[1759989639370,0.56746092,122230.0,122220.0,3.14688]
[1759989639669,0.56746092,122230.0,122220.0,2.40832]
[1759989639869,0.56746092,122230.0,122220.0,3.14688]
[1759989640267,0.56746092,122230.0,122220.0,2.40832]
[1759989640467,0.56746092,122230.0,122220.0,3.14688]
[1759989641770,0.56746092,122230.0,122220.0,2.40832]
[1759989641968,0.56746092,122230.0,122220.0,3.14688]
[1759989643875,0.42419634,122230.0,122220.0,3.14688]
[1759989645572,0.42419634,122230.0,122220.0,2.78608]
[1759989645876,0.42419634,122230.0,122220.0,3.14684]
[1759989648073,0.42419634,122230.0,122220.0,2.40832]
[1759989648268,0.42419634,122230.0,122220.0,3.14688]
[1759989649375,0.42419634,122230.0,122220.0,0.3648]
[1759989649573,0.42419634,122230.0,122220.0,3.14688]
[1759989655688,0.42419634,122230.0,122220.0,2.40836]
[1759989655879,0.42419634,122230.0,122220.0,3.14688]
[1759989659187,0.42419634,122230.0,122220.0,0.3648]
[1759989659387,0.42419634,122230.0,122220.0,3.14688]
[1759989659586,0.42419634,122230.0,122220.0,0.3648]
[1759989659787,0.42419634,122230.0,122220.0,3.14688]
[1759989660287,0.13763756,122230.0,122220.0,3.14688]
[1759989660589,0.05584096,122230.0,122220.0,3.2286833]
[1759989660983,0.42419634,122230.0,122220.0,3.2286833]
[1759989661182,0.42419634,122230.0,122220.0,2.40836]
[1759989661389,0.42419634,122230.0,122220.0,3.2286833]
[1759989662889,0.42419634,122230.0,122220.0,3.14688]
[1759989666090,0.42419634,122230.0,122220.0,2.40836]
[1759989666291,0.42419634,122230.0,122220.0,3.14684]
[1759989667293,0.40333538,122230.0,122220.0,3.14684]
[1759989667494,0.42406385,122230.0,122220.0,3.14684]
[1759989667995,0.42406385,122230.0,122220.0,2.40836]
[1759989668294,0.42406385,122230.0,122220.0,3.14684]
[1759989668695,0.42406385,122230.0,122220.0,0.3648]
[1759989668994,0.42406385,122230.0,122220.0,3.14684]
[1759989669691,0.42406385,122230.0,122220.0,0.004]
[1759989669894,0.42406385,122230.0,122220.0,2.78604]
[1759989670693,0.42406385,122230.0,122220.0,3.14684]
[1759989670895,0.42406385,122230.0,122220.0,3.14584]
[1759989671097,0.42406385,122230.0,122220.0,2.79004]
[1759989671396,0.42406385,122230.0,122220.0,2.78504]
[1759989671598,0.42406385,122230.0,122220.0,2.79204]
[1759989672098,0.42406385,122230.0,122220.0,0.01]
[1759989672298,0.42406385,122230.0,122220.0,2.79204]
[1759989672499,0.42406385,122230.0,122220.0,2.78904]
[1759989672697,0.42406385,122230.0,122220.0,0.011]
[1759989672896,0.42406385,122230.0,122220.0,2.793]
[1759989673494,0.42406385,122230.0,122220.0,0.74948]
[1759989679201,0.42406385,122230.0,122220.0,0.73085231]
[1759989680903,0.1158133,122220.0,122210.0,0.3608]
[1759989681103,0.42310055,122220.0,122210.0,3.1428]
[1759989681303,0.42310055,122220.0,122210.0,0.3608]
[1759989681504,0.42310055,122220.0,122210.0,3.1428]
[1759989682104,0.42310055,122220.0,122210.0,3.1558]
[1759989682299,0.11584,122180.0,122170.0,2.40436]
[1759989682507,0.40239878,122180.0,122170.0,3.14292]
[1759989682805,0.42316518,122180.0,122170.0,3.14444]
[1759989683002,0.42316518,122180.0,122170.0,2.40436]
[1759989683203,0.40239878,122180.0,122170.0,3.14448]
[1759989683505,0.40239878,122180.0,122170.0,3.14848]
[1759989684304,0.40239878,122180.0,122170.0,3.15048]
[1759989684504,0.40239878,122180.0,122170.0,3.2323167]
[1759989687899,0.40239878,122180.0,122170.0,2.4921967]
[1759989688104,0.11584,122180.0,122170.0,3.2322367]
[1759989693813,0.11584,122180.0,122170.0,3.2321567]
[1759989694911,0.11584,122180.0,122170.0,2.4921967]
[1759989695112,0.11584,122180.0,122170.0,3.2321567]
[1759989695610,0.11584,122180.0,122170.0,2.4921967]
[1759989695812,0.11584,122180.0,122170.0,3.2321567]
[1759989697511,0.40239878,122180.0,122170.0,3.2321567]
[1759989697907,0.40239878,122180.0,122170.0,3.2321167]
[1759989698406,0.40239878,122180.0,122170.0,2.8713167]
[1759989698610,0.40239878,122180.0,122170.0,3.2321167]
[1759989702402,0.0944942,122190.0,122180.0,0.08183]
[1759989702403,0.03386,122190.0,122180.0,0.08183]
[1759989702612,0.03370572,122190.0,122180.0,0.44263]
[1759989702808,0.03370572,122190.0,122180.0,1.18243]
[1759989703913,0.3414545,122190.0,122180.0,0.44263]
[1759989704113,0.4232778,122190.0,122180.0,1.18247]
[1759989704713,0.4232778,122190.0,122180.0,1.18547]
[1759989704913,0.4272778,122190.0,122180.0,1.18547]
[1759989705813,0.35572262,122190.0,122180.0,1.4004736]
[1759989712420,0.35572262,122190.0,122180.0,2.48979]
[1759989712717,0.35572262,122190.0,122180.0,3.23003]
[1759989717517,0.35572262,122190.0,122180.0,3.4450336]
[1759989717712,0.14071902,122190.0,122180.0,3.4450336]
[1759989717919,0.35572262,122190.0,122180.0,3.4450336]
[1759989719920,0.33453262,122190.0,122180.0,2.7047936]
[1759989720119,0.25270932,122190.0,122180.0,3.4447936]
[1759989720320,0.33453262,122190.0,122180.0,3.8055936]
[1759989720521,0.25270932,122190.0,122180.0,3.8055936]
[1759989720720,0.03770572,122190.0,122180.0,3.8055936]
[1759989720925,0.24003932,122190.0,122180.0,3.0655936]
[1759989721118,0.24003932,122190.0,122180.0,3.8055936]
[1759989721817,0.25284932,122190.0,122180.0,3.8055936]
[1759989723321,0.33467262,122190.0,122180.0,3.8055936]
[1759989724520,0.33467262,122190.0,122180.0,3.59059]
[1759989724728,0.33467262,122190.0,122180.0,3.8054736]
[1759989725026,0.33467262,122190.0,122180.0,1.0214336]
[1759989725225,0.35776262,122190.0,122180.0,3.59047]
[1759989727330,0.14275902,122190.0,122180.0,3.8054736]
[1759989727528,0.35776262,122190.0,122180.0,3.8054736]
[1759989727925,0.35776262,122190.0,122180.0,3.59039]
[1759989728123,0.35776262,122190.0,122180.0,3.4445936]
[1759989728324,0.35776262,122190.0,122180.0,3.22959]
[1759989728622,0.35776262,122190.0,122180.0,0.44563]
[1759989728823,0.57276622,122190.0,122180.0,2.40792]
[1759989729025,0.57276622,122190.0,122180.0,3.14772]
[1759989729527,0.57276622,122190.0,122180.0,2.40792]
[1759989729926,0.57276622,122190.0,122180.0,2.78732]
[1759989733532,0.14275902,122190.0,122180.0,2.78732]
[1759989733733,0.57276622,122190.0,122180.0,2.78732]
[1759989735330,0.57276622,122190.0,122180.0,2.86915]
[1759989736135,1.33356622,122190.0,122180.0,0.003]
[1759989736335,1.33356622,122190.0,122180.0,0.74304]
[1759989739837,1.33356622,122190.0,122180.0,0.003]
[1759989740043,0.1175667,122170.0,122160.0,0.442638]
[1759989740236,0.35360602,122170.0,122160.0,3.051158]
[1759989740438,0.3325703,122170.0,122160.0,3.051158]
[1759989741237,0.3325703,122170.0,122160.0,3.057158]
[1759989741642,0.3325703,122170.0,122160.0,3.058158]
[1759989749653,0.3325703,122170.0,122160.0,0.449638]
[1759989749851,0.3325703,122170.0,122160.0,3.233758]
[1759989750153,0.3325703,122170.0,122160.0,0.449638]
[1759989750351,0.3325703,122170.0,122160.0,3.233758]
[1759989757660,0.1175667,122170.0,122160.0,3.233758]
[1759989757861,0.3325703,122170.0,122160.0,3.233638]
[1759989759361,0.3325703,122170.0,122160.0,2.872838]
[1759989759560,0.3325703,122170.0,122160.0,3.233638]
[1759989761355,0.3325703,122170.0,122160.0,2.872838]
[1759989761663,0.3325703,122170.0,122160.0,3.233638]
[1759989762265,0.35367983,122170.0,122160.0,3.233638]
[1759989762460,0.35367983,122170.0,122160.0,2.872838]
[1759989762661,0.35367983,122170.0,122160.0,3.233638]
[1759989764058,0.35367983,122170.0,122160.0,0.3678]
[1759989764263,0.35367983,122170.0,122160.0,0.007]
[1759989764264,1.32948343,122170.0,122160.0,0.007]
[1759989764462,1.32948343,122170.0,122160.0,0.74664]
[1759989767459,1.54448703,122170.0,122160.0,0.74664]
[1759989767665,1.54448703,122170.0,122160.0,0.007]
[1759989767966,1.47335677,122170.0,122160.0,0.74704]
[1759989781076,0.0949768,122140.0,122130.0,0.3608]
[1759989781280,0.0949768,122140.0,122130.0,2.8663435]
[1759989781281,0.40345707,122140.0,122130.0,2.8663435]
[1759989781477,0.40345707,122140.0,122130.0,3.2271435]
[1759989782478,0.40445707,122140.0,122130.0,3.2401435]
[1759989783181,0.40545707,122140.0,122130.0,3.2561435]
[1759989787182,0.42648969,122140.0,122130.0,2.8953435]
[1759989797386,0.40545707,122140.0,122130.0,2.8953435]
[1759989797587,0.427442,122140.0,122130.0,2.8953435]
[1759989799288,0.427442,122140.0,122130.0,0.8507435]
[1759989800389,0.427442,122140.0,122130.0,0.76888]
[1759989800588,0.788242,122140.0,122130.0,0.029]
[1759989800984,0.788242,122140.0,122130.0,0.7688]
[1759989801785,1.188242,122140.0,122130.0,0.7688]
[1759989802990,1.192242,122140.0,122130.0,0.7398]
[1759989803194,1.192242,122140.0,122130.0,0.7408]
[1759989804593,1.192242,122140.0,122130.0,0.74088]
[1759989807395,1.47918227,122140.0,122130.0,0.001]
[1759989807696,1.192242,122140.0,122130.0,0.74088]
[1759989808897,1.192242,122140.0,122130.0,0.001]
[1759989809196,1.192242,122140.0,122130.0,0.74084]
[1759989809797,0.90530173,122140.0,122130.0,0.74084]
[1759989809997,1.192242,122140.0,122130.0,0.74084]
[1759989811895,0.1178735,122130.0,122120.0,7.285e-05]
[1759989812198,0.0954369,122110.0,122100.0,2.1269632]
[1759989812399,0.4043621,122110.0,122100.0,2.8668432]
[1759989813702,0.4043621,122110.0,122100.0,2.8678432]
[1759989813904,0.4043621,122110.0,122100.0,2.8718432]
[1759989818103,0.3224852,122110.0,122100.0,2.1319632]
[1759989818303,0.3224852,122110.0,122100.0,3.2325632]
[1759989818702,0.4043621,122110.0,122100.0,3.2325632]
[1759989821311,0.38237717,122110.0,122100.0,3.2325632]
[1759989821515,0.40430843,122110.0,122100.0,3.2325632]
[1759989823816,0.40430843,122110.0,122100.0,3.2324832]
[1759989825818,0.42654843,122110.0,122100.0,0.4476832]
[1759989826021,0.42654843,122110.0,122100.0,3.2327232]
[1759989827022,0.42654843,122110.0,122100.0,2.8719232]
[1759989828522,0.42654843,122110.0,122100.0,2.1322432]
[1759989828722,0.42654843,122110.0,122100.0,2.8718832]
[1759989829825,0.57027906,122110.0,122100.0,2.8718832]
[1759989831519,0.57027906,122110.0,122100.0,2.1322432]
[1759989831820,0.57027906,122110.0,122100.0,2.8718432]
[1759989832423,0.57027906,122110.0,122100.0,2.1322432]
[1759989832724,0.57027906,122110.0,122100.0,2.8718432]
[1759989833023,0.57027906,122110.0,122100.0,2.8718032]
[1759989833217,0.57027906,122110.0,122100.0,2.1322432]
[1759989833414,0.57027906,122110.0,122100.0,2.8718032]
[1759989833824,0.35494361,122110.0,122100.0,2.8718032]
[1759989835527,0.57027906,122110.0,122100.0,2.1322432]
[1759989835724,0.57027906,122110.0,122100.0,2.8718032]
[1759989837026,0.35494361,122110.0,122100.0,2.8718032]
[1759989840229,0.33270361,122110.0,122100.0,2.8718032]
[1759989840426,0.02193126,122110.0,122100.0,3.3237141]
[1759989840631,0.23726671,122110.0,122100.0,3.10837865]
[1759989840927,0.23726671,122110.0,122100.0,3.84793865]
[1759989841830,0.23726671,122110.0,122100.0,3.6326032]
[1759989842029,0.23726671,122110.0,122100.0,3.84793865]
[1759989842230,0.23726671,122110.0,122100.0,2.8930432]
[1759989842426,0.31914361,122110.0,122100.0,3.6326432]
[1759989842621,0.33180361,122110.0,122100.0,3.6326432]
[1759989847531,0.24992671,122110.0,122100.0,3.6326432]
[1759989847930,0.23726671,122110.0,122100.0,3.6326432]
[1759989848131,0.23726671,122110.0,122100.0,3.10841865]
[1759989848331,0.23726671,122110.0,122100.0,3.84797865]
[1759989849230,0.02193126,122110.0,122100.0,2.8930832]
[1759989849424,0.23726671,122110.0,122100.0,3.84797865]
[1759989849623,0.23726671,122110.0,122100.0,1.06301865]
[1759989849823,0.23726671,122110.0,122100.0,3.84793865]
[1759989850126,0.23726671,122110.0,122100.0,3.6326032]
[1759989850531,0.31914361,122110.0,122100.0,3.6326032]
[1759989851439,0.31914361,122110.0,122100.0,0.8476832]
[1759989851736,0.33306361,122110.0,122100.0,3.6326032]
[1759989853436,0.33306361,122110.0,122100.0,2.8930432]
[1759989853632,0.33306361,122110.0,122100.0,0.8476832]
[1759989853832,0.33306361,122110.0,122100.0,3.6326032]
[1759989855736,0.33306361,122110.0,122100.0,0.8476832]
[1759989856137,0.33306361,122110.0,122100.0,3.6326032]
[1759989859741,0.31914361,122110.0,122100.0,2.8930432]
[1759989860342,0.31914361,122110.0,122100.0,3.6326032]
[1759989860540,0.23726671,122110.0,122100.0,2.8930432]
[1759989860743,0.23726671,122110.0,122100.0,3.6326032]
[1759989861943,0.31914361,122110.0,122100.0,3.6326032]
[1759989862146,0.23726671,122110.0,122100.0,3.10837865]
[1759989862340,0.23726671,122110.0,122100.0,3.84793865]
[1759989862939,0.31914361,122110.0,122100.0,3.84793865]
[1759989863645,0.29720345,122130.0,122120.0,0.0818702]
[1759989863956,0.31922899,122130.0,122120.0,0.65800565]
[1759989864244,0.31922899,122130.0,122120.0,1.39756565]
[1759989864744,0.10389354,122130.0,122120.0,1.39752565]
[1759989864943,0.32322899,122130.0,122120.0,1.39752565]
[1759989865538,0.32322899,122130.0,122120.0,1.1821902]
[1759989865844,0.24136099,122130.0,122120.0,0.65900565]
[1759989866040,0.02602554,122130.0,122120.0,0.8743411]
[1759989866236,0.004,122130.0,122120.0,0.8743411]
[1759989866435,0.004,122130.0,122120.0,1.6159411]
[1759989866642,0.004,122130.0,122120.0,1.6371411]
[1759989866845,0.004,122130.0,122120.0,2.3767411]
[1759989867146,0.004,122130.0,122120.0,2.3737411]
[1759989867347,0.005,122130.0,122120.0,2.3807411]
[1759989867643,0.002,122130.0,122120.0,2.3807411]
[1759989867939,0.002,122130.0,122120.0,1.6411411]
[1759989868144,0.001,122130.0,122120.0,2.3877011]
[1759989869644,0.001,122130.0,122120.0,4.4329011]
[1759989870346,0.21633545,122130.0,122120.0,3.47796565]
[1759989870647,0.21633545,122130.0,122120.0,1.2174702]
[1759989870846,0.31211895,122130.0,122120.0,4.21748565]
[1759989871041,0.31211895,122130.0,122120.0,0.7356]
[1759989871249,0.33315895,122130.0,122120.0,2.78076]
[1759989871445,0.33315895,122130.0,122120.0,3.52036]
[1759989871945,0.33315895,122130.0,122120.0,3.6022302]
[1759989872649,0.9484944,122130.0,122120.0,2.41992]
[1759989872950,0.9484944,122130.0,122120.0,2.79876]
[1759989873247,0.97045356,122130.0,122120.0,2.79876]
[1759989874144,0.97045356,122130.0,122120.0,2.1409902]
[1759989874346,0.97045356,122130.0,122120.0,2.8808302]
[1759989875649,0.97045356,122130.0,122120.0,0.014]
[1759989875845,0.97045356,122130.0,122120.0,2.79892]
[1759989876046,0.97045356,122130.0,122120.0,0.014]
[1759989876247,0.97045356,122130.0,122120.0,2.79892]
[1759989879142,0.97045356,122130.0,122120.0,0.014]
[1759989879548,0.97045356,122130.0,122120.0,0.75376]
[1759989880149,0.97045356,122130.0,122120.0,0.7538]
[1759989881654,0.97045356,122130.0,122120.0,0.014]
[1759989881954,0.97045356,122130.0,122120.0,0.75376]
[1759989882356,0.57045356,122130.0,122120.0,0.75376]
[1759989882552,0.57045356,122130.0,122120.0,0.014]
[1759989882752,0.57045356,122130.0,122120.0,0.75376]
[1759989885961,0.57045356,122130.0,122120.0,0.014]
[1759989886159,0.93125356,122130.0,122120.0,0.75372]
[1759989888962,0.93125356,122130.0,122120.0,0.8355902]
[1759989889561,0.93125356,122130.0,122120.0,0.75372]
[1759989891864,0.78762098,122130.0,122120.0,0.75372]
[1759989892261,0.78762098,122130.0,122120.0,0.0958702]
[1759989892464,0.42682098,122130.0,122120.0,0.0958702]
[1759989892662,0.42682098,122130.0,122120.0,0.8354702]
[1759989892961,0.42721098,122130.0,122120.0,0.0958702]
[1759989893163,0.02295916,122130.0,122120.0,0.4566702]
[1759989893364,0.001,122130.0,122120.0,0.8566702]
[1759989893566,0.001,122130.0,122120.0,1.5964702]
[1759989894067,0.001,122130.0,122120.0,0.8566702]
[1759989894567,0.001,122130.0,122120.0,1.5965502]
[1759989894767,0.0828635,122130.0,122120.0,0.8566702]
[1759989894970,0.0828635,122130.0,122120.0,1.5965502]
[1759989896063,0.36990182,122130.0,122120.0,1.5965502]
[1759989897469,0.38295182,122130.0,122120.0,1.5965502]
[1759989898072,0.38295182,122130.0,122120.0,0.8566702]
[1759989898370,0.38295182,122130.0,122120.0,3.6417102]
[1759989899774,0.28803832,122130.0,122120.0,2.9019102]
[1759989899975,0.001,122130.0,122120.0,2.9019102]
[1759989900271,0.001,122130.0,122120.0,3.6416702]
[1759989900472,0.40438182,122130.0,122120.0,2.5018702]